bitfinex-derivatives/quotes_ETHF0:USTF0_20241104
["timestamp","ask_amount","ask_price","bid_price","bid_amount"]
[1730762896448,0.41716,2398.5,2398.4,2.55290934]
[1730762896859,6.87439369,2398.7,2398.5,0.41714]
[1730762897054,6.87439369,2398.7,2398.6,1.07988773]
[1730762897756,3.2078,2398.7,2398.6,2.17082369]
[1730762897958,3.75966369,2398.9,2398.6,3.0653478]
[1730762898163,0.41711,2398.8,2398.7,0.56228773]
[1730762899852,3.2078,2398.8,2398.6,1.09093596]
[1730762900057,3.2078,2398.8,2398.3,2.17580859]
[1730762900058,0.41717,2398.4,2398.3,1.09093596]
[1730762900269,0.41719,2398.3,2398.2,1.09093596]
[1730762900562,3.76456369,2398.3,2398.2,1.09093596]
[1730762900767,4.18175369,2398.3,2398.2,1.09093596]
[1730762901263,4.18175369,2398.3,2398.2,1.98528662]
[1730762901456,4.18175369,2398.3,2398.2,1.09093596]
[1730762901768,0.4172,2398.2,2398.1,1.09093596]
[1730762901960,0.4172,2398.2,2398.1,3.37354402]
[1730762902558,0.4172,2398.2,2398.1,1.98693253]
[1730762903969,0.4172,2398.2,2398.1,1.98709903]
[1730762905463,0.4172,2398.2,2398.1,1.98709257]
[1730762907172,0.4172,2398.2,2398.1,2.40431257]
[1730762908571,0.4172,2398.2,2398.1,1.50977058]
[1730762908874,0.4172,2398.2,2398.1,1.98715363]
[1730762909671,0.4172,2398.2,2398.1,2.40437363]
[1730762910268,0.4172,2398.2,2398.1,1.98715363]
[1730762911868,0.4172,2398.2,2398.1,2.54633302]
[1730762912067,0.4172,2398.2,2398.1,2.96355302]
[1730762912371,0.4172,2398.2,2398.1,1.50977058]
[1730762912573,0.4172,2398.2,2398.1,2.54645274]
[1730762912772,0.4172,2398.2,2398.1,3.93547036]
[1730762913373,0.4172,2398.2,2398.1,3.93547002]
[1730762913575,0.4172,2398.2,2398.1,2.84291944]
[1730762914671,0.4172,2398.2,2398.1,4.47549617]
[1730762915275,0.5151,2398.3,2398.1,4.47549617]
[1730762915471,0.41719,2398.3,2398.2,3.93669077]
[1730762915673,0.41719,2398.3,2398.2,4.42189345]
[1730762916268,0.41719,2398.3,2397.8,3.24196074]
[1730762916269,3.2078,2397.3,2396.8,6.79192386]
[1730762916474,2.08735,2396.7,2395.3,5.98277656]
[1730762916677,2.08735,2396.7,2395.3,3.2078]
[1730762916678,3.24946369,2395.4,2395.3,3.2078]
[1730762917190,3.24946369,2395.4,2395.3,8.27418545]
[1730762918784,3.66715369,2395.4,2395.3,8.27418545]
[1730762924086,0.41774,2395.1,2395.0,3.2078]
[1730762924285,3.66720369,2395.1,2395.0,3.2078]
[1730762924488,3.24946369,2395.1,2394.7,0.5332]
[1730762924788,3.24946369,2394.8,2394.6,3.2078]
[1730762925087,0.41781,2394.7,2394.6,8.27418545]
[1730762926594,0.41781,2394.7,2394.6,5.06638545]
[1730762933590,0.41781,2394.7,2394.6,8.27418545]
[1730762939995,0.41781,2394.7,2394.3,3.2078]
[1730762939996,3.24946369,2394.7,2394.3,3.2078]
[1730762940195,0.41787,2394.4,2394.3,3.2078]
[1730762940703,0.41787,2394.4,2394.3,8.27418545]
[1730762944898,0.41787,2394.4,2394.3,8.69206545]
[1730762945408,1.04445,2394.9,2394.4,0.41785]
[1730762945700,1.04445,2394.9,2394.8,5.06638545]
[1730762945701,0.41778,2394.9,2394.8,5.06638545]
[1730762950507,0.41778,2394.9,2394.8,5.76538545]
[1730762953006,0.41778,2394.9,2394.8,0.699]
[1730762961406,0.41778,2394.9,2394.8,1.22243802]
[1730762963107,1.50518729,2394.9,2394.8,0.699]
[1730762963311,1.50518729,2394.9,2394.8,1.22273215]
[1730762963509,1.50518729,2394.9,2394.8,0.699]
[1730762963714,1.50518729,2394.9,2394.8,1.22283279]
[1730762965405,0.41778,2394.9,2394.8,1.22283279]
[1730762966818,2.05290498,2394.9,2394.8,1.22283279]
[1730762967807,0.41778,2394.9,2394.8,1.22283279]
[1730762969415,2.59794664,2394.9,2394.8,1.22283279]
[1730762970308,0.41778,2394.9,2394.8,0.699]
[1730762970514,0.41778,2394.9,2394.8,1.22419056]
[1730762972312,3.1429883,2394.9,2394.8,1.22419056]
[1730762973812,6.3507883,2394.9,2394.8,1.22419056]
[1730762974402,3.62558,2394.9,2394.8,0.699]
[1730762977417,5.13024594,2394.9,2394.8,0.699]
[1730762979510,6.21713188,2394.9,2394.6,0.9661]
[1730762979814,6.16270001,2394.7,2394.6,0.9661]
[1730762980013,6.16270001,2394.7,2394.6,1.49804765]
[1730762981415,6.16270001,2394.7,2394.6,1.49805483]
[1730762982015,3.42714188,2394.7,2394.6,1.49805483]
[1730762982522,6.16287451,2394.7,2394.6,1.49805483]
[1730762983323,5.74506451,2394.7,2394.5,0.5048]
[1730762983522,3.15356263,2394.6,2394.5,0.5048]
[1730762983725,3.15356263,2394.6,2394.5,1.03969709]
[1730762984027,6.36136263,2394.6,2394.5,1.03969709]
[1730762984415,6.36136263,2394.6,2394.5,0.5048]
[1730762986722,7.86602857,2394.6,2394.5,0.5048]
[1730762987926,6.36136263,2394.6,2394.5,0.5048]
[1730762988127,7.86602857,2394.6,2394.5,5.57118545]
[1730762989524,6.36136263,2394.6,2394.5,5.57118545]
[1730762989833,5.13029594,2394.6,2394.5,5.57118545]
[1730762991526,3.62563,2394.6,2394.5,5.57118545]
[1730762992227,3.62563,2394.6,2394.5,6.10568863]
[1730762992432,5.8129289,2394.6,2394.5,6.10568863]
[1730762992630,5.8129289,2394.6,2394.5,5.57118545]
[1730762992840,5.8129289,2394.6,2394.5,6.10569047]
[1730762994531,3.62563,2394.6,2394.5,6.10569047]
[1730762994731,5.81313194,2394.6,2394.5,6.10569047]
[1730762995438,3.62563,2394.6,2394.5,6.10569047]
[1730762996438,0.41783,2394.6,2394.5,6.10569047]
[1730762996633,0.41783,2394.6,2394.5,6.10580194]
[1730762996833,0.41783,2394.6,2394.5,6.10580161]
[1730763000239,0.41783,2394.6,2394.5,6.1058944]
[1730763002645,0.41783,2394.6,2394.5,5.57118545]
[1730763002838,0.41783,2394.6,2394.5,6.10930681]
[1730763003043,0.41783,2394.6,2394.5,6.10930865]
[1730763003954,1.92249594,2394.6,2394.5,1.0429232]
[1730763004250,0.41783,2394.6,2394.5,6.10930865]
[1730763004550,41.21783,2394.6,2394.5,6.10930865]
[1730763006141,41.21783,2394.6,2394.5,5.57118545]
[1730763006338,41.21783,2394.6,2394.5,6.10937734]
[1730763006541,41.21783,2394.6,2394.5,6.64758825]
[1730763006743,41.21783,2394.6,2394.5,6.10939636]
[1730763010945,2.18930524,2394.7,2394.5,9.31719636]
[1730763011151,2.60709524,2394.9,2394.6,8.89016726]
[1730763011445,1.64177988,2394.7,2394.6,2.06167098]
[1730763011649,1.50466594,2394.9,2394.7,0.4178]
[1730763011846,1.50466594,2394.9,2394.8,5.60452469]
[1730763012851,1.50466594,2394.9,2394.8,6.86048553]
[1730763013256,1.50466594,2394.9,2394.8,5.60452469]
[1730763013553,1.50466594,2394.9,2394.8,5.60430389]
[1730763013747,41.21777,2395.0,2394.8,5.60430389]
[1730763013748,40.8,2395.0,2394.8,10.06777637]
[1730763013947,40.8,2395.0,2394.9,6.02208389]
[1730763014143,1.50466594,2395.1,2394.9,5.60430389]
[1730763014347,2.18761184,2395.4,2395.2,0.95470427]
[1730763014556,2.18761184,2395.4,2395.1,3.62554]
[1730763014557,1.92238594,2395.3,2395.1,3.62554]
[1730763014758,42.72238594,2395.3,2395.2,1.52162014]
[1730763015055,1.50466594,2395.3,2395.2,2.47632441]
[1730763015356,1.92237594,2395.3,2395.2,2.47632441]
[1730763017146,3.2078,2395.7,2395.2,5.1591]
[1730763017147,1.92236594,2395.4,2395.2,5.1591]
[1730763017350,1.50466594,2395.4,2395.3,0.53708234]
[1730763017552,1.50466594,2395.6,2395.3,4.71228234]
[1730763017865,1.09244903,2395.4,2395.3,0.41771]
[1730763018046,1.50466594,2395.6,2395.3,4.71143324]
[1730763018352,1.50466594,2395.6,2395.5,0.41767]
[1730763018558,1.50466594,2395.6,2395.5,0.95470324]
[1730763018948,1.50466594,2395.6,2395.5,5.12910324]
[1730763019755,3.62545,2395.7,2395.5,5.12910324]
[1730763019953,3.62545,2395.7,2395.6,4.1744]
[1730763020154,3.62544,2395.7,2395.6,4.1744]
[1730763020355,3.62544,2395.7,2395.6,4.59206]
[1730763020759,3.62544,2395.7,2395.6,4.1744]
[1730763021662,3.62544,2395.7,2395.6,4.59206]
[1730763021953,1.92229594,2395.8,2395.6,4.1744]
[1730763022255,1.50466594,2395.8,2395.7,4.13114]
[1730763022554,1.92226594,2396.0,2395.8,0.41762]
[1730763022758,1.50466594,2396.0,2395.8,0.41762]
[1730763022961,1.92225594,2396.0,2395.7,3.7135]
[1730763023263,3.2078,2396.2,2395.8,4.6817]
[1730763023264,4.71246594,2396.2,2395.8,4.6817]
[1730763023461,0.41758,2396.1,2395.9,0.4176]
[1730763023759,5.13002594,2396.2,2396.0,0.41758]
[1730763024260,5.13002594,2396.2,2395.9,0.4728]
[1730763024261,4.71246594,2396.2,2395.9,0.4728]
[1730763024460,4.71246594,2396.2,2396.0,0.41758]
[1730763024659,5.13003594,2396.2,2395.9,0.4728]
[1730763024961,5.13003594,2396.2,2396.0,0.41758]
[1730763025156,1.50466594,2396.2,2396.1,0.41757]
[1730763025361,1.50466594,2396.2,2396.1,4.59117]
[1730763025559,1.92221594,2396.2,2396.1,4.1736]
[1730763026356,1.50466594,2396.2,2396.0,3.2078]
[1730763026562,0.41759,2396.0,2395.9,0.4728]
[1730763028259,0.41759,2396.0,2395.9,0.8904]
[1730763028862,1.92224594,2396.1,2396.0,0.41759]
[1730763029063,0.41758,2396.1,2396.0,0.41759]
[1730763029255,4.30192157,2396.4,2395.9,0.4728]
[1730763029461,0.41759,2396.0,2395.9,0.89039]
[1730763029862,0.41759,2396.0,2395.9,5.06399]
[1730763031867,0.41757,2396.1,2396.0,0.41758]
[1730763033565,3.25809157,2396.4,2395.9,0.4728]
[1730763033868,0.41757,2396.2,2396.1,0.41757]
[1730763034066,3.25809157,2396.4,2395.9,0.4728]
[1730763034279,0.41757,2396.1,2396.0,0.41758]
[1730763034468,0.41755,2396.2,2396.1,0.41756]
[1730763035272,0.41754,2396.3,2396.2,0.41755]
[1730763035568,4.2264,2396.5,2396.2,0.93255]
[1730763035770,0.41753,2396.4,2396.2,0.93255]
[1730763036676,4.64391,2396.5,2396.3,0.41753]
[1730763036872,0.41752,2396.4,2396.2,0.93254]
[1730763037077,1.43611,2396.5,2396.3,0.41753]
[1730763037768,0.41752,2396.4,2396.2,0.93254]
[1730763038173,0.41753,2396.3,2396.2,0.515]
[1730763038575,0.41753,2396.3,2396.2,0.93255]
[1730763039873,0.41753,2396.3,2396.2,4.14035]
[1730763043379,0.41753,2396.3,2396.2,8.31315]
[1730763046182,0.41753,2396.3,2396.2,4.14035]
[1730763046881,0.41752,2396.4,2396.3,0.41752]
[1730763048584,1.43611,2396.5,2396.3,0.41753]
[1730763049083,0.41752,2396.4,2396.3,0.41753]
[1730763052386,0.41753,2396.4,2396.3,0.41753]
[1730763055786,0.41753,2396.3,2396.2,4.14034]
[1730763056291,0.41753,2396.3,2396.2,4.67523556]
[1730763058288,0.41753,2396.3,2396.2,4.67564809]
[1730763058790,0.41744,2396.9,2396.8,0.41743]
[1730763058988,0.41743,2396.9,2396.8,3.2078]
[1730763059294,0.41743,2396.9,2396.8,3.74304534]
[1730763059490,0.41743,2396.9,2396.8,3.74302077]
[1730763059794,1.50362069,2397.4,2396.8,6.33565551]
[1730763059982,0.4174,2397.1,2397.0,0.4174]
[1730763060184,1.2152,2397.2,2397.0,3.74302077]
[1730763060388,1.63258,2397.2,2397.1,0.95262077]
[1730763060582,0.6045,2397.2,2397.1,0.95262077]
[1730763060990,1.02188,2397.2,2397.1,0.95262077]
[1730763061295,1.02188,2397.2,2397.1,0.53522077]
[1730763061489,0.4174,2397.1,2397.0,4.71421405]
[1730763061684,0.4174,2397.1,2397.0,5.25274589]
[1730763061885,1.02189,2397.2,2397.1,0.4174]
[1730763062188,1.02189,2397.2,2397.1,0.95593184]
[1730763063094,0.6045,2397.2,2397.1,0.95593184]
[1730763063595,1.02188,2397.2,2397.1,0.53853184]
[1730763063997,0.6045,2397.2,2397.1,0.95593184]
[1730763064188,0.602,2397.4,2397.1,4.71053184]
[1730763064389,0.41736,2397.3,2397.2,0.95591184]
[1730763064695,1.2339,2397.4,2397.3,0.41736]
[1730763064991,0.6319,2397.4,2397.3,4.16369184]
[1730763066692,2.13552069,2397.4,2397.3,0.53853184]
[1730763066893,6.30672069,2397.4,2396.9,7.56578388]
[1730763067092,0.4174,2397.1,2397.0,0.5383276]
[1730763067299,0.41745,2396.8,2396.6,4.71429405]
[1730763067497,42.30362069,2396.7,2396.6,4.29681405]
[1730763067689,42.72108069,2396.7,2396.6,3.74639301]
[1730763067994,42.72108069,2396.7,2396.6,3.74641914]
[1730763068197,42.30362069,2396.7,2396.6,4.16389914]
[1730763068996,42.72108069,2396.7,2396.6,3.74641914]
[1730763069292,41.21746,2396.7,2396.6,3.74641914]
[1730763070098,41.21746,2396.7,2396.6,4.16389914]
[1730763070292,41.21746,2396.7,2396.6,3.74641914]
[1730763070490,41.21746,2396.7,2396.6,0.53861914]
[1730763071193,0.41752,2396.4,2396.3,1.08901405]
[1730763071400,0.41753,2396.3,2396.2,3.2078]
[1730763071597,0.41753,2396.3,2396.2,3.75089325]
[1730763071898,0.41753,2396.3,2396.2,3.2078]
[1730763072096,0.41753,2396.3,2396.2,3.75089456]
[1730763072299,0.41753,2396.3,2396.2,3.2078]
[1730763072491,1.8496,2396.5,2396.2,3.2078]
[1730763072688,2.26711,2396.5,2396.2,3.62534]
[1730763072893,0.41753,2396.4,2396.2,3.62534]
[1730763073694,1.2144,2396.5,2396.2,3.2078]
[1730763073901,1.63191,2396.5,2396.3,0.96067449]
[1730763074100,0.41752,2396.4,2396.2,3.62535]
[1730763074298,0.41752,2396.4,2396.3,0.54318614]
[1730763074501,0.41752,2396.4,2396.2,3.62535]
[1730763075207,0.41753,2396.3,2396.2,3.2078]
[1730763075399,0.41753,2396.3,2396.2,3.75103071]
[1730763075703,0.41753,2396.3,2396.2,3.751032]
[1730763076706,3.62533,2396.3,2396.2,0.543232]
[1730763076912,0.41762,2395.8,2395.7,0.6412]
[1730763077205,0.41762,2395.8,2395.7,0.54334745]
[1730763077401,0.41764,2395.7,2395.6,0.5926]
[1730763077600,4.30105933,2396.0,2395.8,0.41761]
[1730763077601,1.6537,2396.0,2395.8,0.41761]
[1730763077796,0.41759,2396.0,2395.8,3.62541]
[1730763078004,0.4176,2395.9,2395.8,3.2078]
[1730763078211,0.4176,2395.9,2395.8,3.75108806]
[1730763078719,0.4176,2395.9,2395.8,3.2078]
[1730763079013,0.4176,2396.0,2395.8,3.62542]
[1730763079204,0.4176,2395.9,2395.8,3.2078]
[1730763080413,3.25708933,2396.0,2395.5,4.29681405]
[1730763080604,0.41763,2395.8,2395.6,0.96083038]
[1730763080804,0.41765,2395.7,2395.5,3.62547]
[1730763081006,0.41765,2395.7,2395.6,0.54318826]
[1730763081409,0.41765,2395.7,2395.6,4.71758826]
[1730763082505,0.41765,2395.7,2395.6,0.54318826]
[1730763082706,0.41764,2395.7,2395.6,0.54318826]
[1730763082908,0.41764,2395.7,2395.6,0.96084826]
[1730763083213,0.41764,2395.7,2395.6,4.71758826]
[1730763083608,0.41764,2395.7,2395.6,0.54318826]
[1730763084906,0.41764,2395.7,2395.6,5.13524826]
[1730763085206,0.41764,2395.7,2395.6,0.41766]
[1730763085407,0.41764,2395.7,2395.6,4.59206]
[1730763085616,7.68548933,2396.2,2395.6,4.71721523]
[1730763085820,7.68548933,2396.2,2395.4,3.37293405]
[1730763085821,0.41761,2395.9,2395.8,3.62541]
[1730763086112,4.47768933,2396.2,2395.9,0.4176]
[1730763086113,0.41758,2396.1,2395.9,0.4176]
[1730763086317,0.41759,2396.0,2395.9,1.0168]
[1730763086706,0.41759,2396.0,2395.9,1.6484]
[1730763087611,0.41753,2396.4,2395.9,5.4044]
[1730763087819,0.41753,2396.4,2396.1,3.2078]
[1730763087820,0.41752,2396.4,2396.1,3.2078]
[1730763088016,0.41752,2396.4,2396.2,0.41755]
[1730763088502,3.2078,2396.5,2396.2,0.41755]
[1730763088709,0.41755,2396.2,2396.1,3.62536]
[1730763088910,6.46488933,2396.5,2396.1,3.62536]
[1730763089113,0.41755,2396.3,2396.1,3.62536]
[1730763089909,0.41755,2396.3,2396.1,3.2078]
[1730763090104,0.41755,2396.3,2396.2,0.41755]
[1730763091218,6.46488933,2396.5,2396.1,3.2078]
[1730763091519,6.46488933,2396.5,2396.2,0.41755]
[1730763091520,0.41755,2396.3,2396.2,0.41755]
[1730763092816,3.2078,2396.5,2396.1,3.2078]
[1730763093214,3.2078,2396.5,2396.2,0.41754]
[1730763093415,0.41753,2396.3,2396.2,0.41754]
[1730763094026,40.8,2396.4,2396.1,3.2078]
[1730763094217,0.41755,2396.2,2395.9,3.53209]
[1730763094415,0.41758,2396.1,2396.0,0.41759]
[1730763095221,0.41759,2396.0,2395.9,1.64839]
[1730763095725,0.6416,2396.2,2395.9,1.2308]
[1730763095926,0.41759,2396.0,2395.9,1.64839]
[1730763096119,0.4176,2395.9,2395.8,3.2078]
[1730763096320,1.0203,2395.9,2395.8,3.2078]
[1730763097823,1.0203,2395.9,2395.8,3.62542]
[1730763098028,0.4176,2395.9,2395.8,3.2078]
[1730763098422,4.52808933,2396.1,2395.8,3.2078]
[1730763098627,0.4176,2395.9,2395.8,3.2078]
[1730763099123,4.52808933,2396.1,2395.7,0.41762]
[1730763099521,0.41762,2395.8,2395.7,0.41762]
[1730763100325,0.41762,2395.8,2395.6,0.41764]
[1730763100526,4.52808933,2396.1,2395.6,0.41764]
[1730763100732,0.41764,2395.7,2395.6,0.41764]
[1730763100923,0.41762,2395.8,2395.7,0.41763]
[1730763101424,1.6855,2396.2,2395.9,0.41759]
[1730763101425,0.41759,2396.0,2395.9,0.41759]
[1730763101841,0.6416,2396.2,2395.9,0.41759]
[1730763102028,0.41758,2396.1,2395.9,1.05069]
[1730763102231,0.41758,2396.1,2396.0,0.41759]
[1730763102425,0.41759,2396.0,2395.9,1.67349]
[1730763102632,0.41759,2396.0,2395.9,1.2559]
[1730763103732,1.05916,2396.2,2396.0,0.41758]
[1730763103930,0.41758,2396.1,2395.9,2.28359]
[1730763104834,0.41758,2396.1,2395.9,1.866]
[1730763105029,1.04378,2396.5,2395.9,1.866]
[1730763105030,4.89286799,2396.6,2395.9,6.0396]
[1730763105330,0.41754,2396.3,2396.1,3.62535]
[1730763105535,0.41754,2396.3,2396.2,0.41755]
[1730763106133,0.41752,2396.4,2396.1,3.2078]
[1730763106334,0.41752,2396.4,2396.2,0.41754]
[1730763106534,45.29288933,2396.6,2396.2,0.41754]
[1730763106535,0.41753,2396.3,2396.2,0.41754]
[1730763107332,45.29288933,2396.6,2396.1,3.2078]
[1730763107536,0.41754,2396.3,2396.2,0.41755]
[1730763108132,45.29288933,2396.6,2396.2,0.41755]
[1730763108339,0.41753,2396.3,2396.2,0.41755]
[1730763108531,45.29288933,2396.6,2396.1,3.62536]
[1730763108532,0.41755,2396.2,2396.1,3.62536]
[1730763108729,45.29288933,2396.6,2396.1,3.2078]
[1730763108929,45.29288933,2396.6,2396.2,0.41755]
[1730763108930,0.41755,2396.3,2396.2,0.41755]
[1730763110827,45.29288933,2396.6,2396.1,3.2078]
[1730763111030,0.41753,2396.4,2396.3,0.41753]
[1730763112137,0.41754,2396.3,2396.2,0.41754]
[1730763113243,0.41754,2396.3,2396.2,1.50655405]
[1730763114242,0.41754,2396.3,2396.1,4.29681405]
[1730763114542,0.41754,2396.3,2396.2,0.41755]
[1730763115738,0.41754,2396.3,2396.2,0.95866161]
[1730763115940,0.41754,2396.3,2396.2,4.16646161]
[1730763116744,0.41754,2396.3,2396.2,5.25547566]
[1730763116938,0.41754,2396.3,2396.2,4.71436405]
[1730763117143,0.41754,2396.3,2396.2,5.25560141]
[1730763117348,0.41754,2396.3,2396.2,6.12157654]
[1730763117945,0.41754,2396.3,2396.2,5.70402654]
[1730763118348,0.41754,2396.3,2396.2,4.83805141]
[1730763118649,0.41754,2396.3,2396.2,3.74903736]
[1730763119249,0.41754,2396.3,2396.2,3.62535]
[1730763119452,0.41754,2396.3,2396.2,4.17006709]
[1730763119645,0.41754,2396.3,2396.2,4.17008286]
[1730763119950,0.41754,2396.3,2396.2,0.96228286]
[1730763121644,0.41754,2396.3,2396.2,2.05129691]
[1730763121949,0.41754,2396.3,2396.2,0.96228286]
[1730763122149,0.41754,2396.3,2396.2,2.05129691]
[1730763122452,0.41754,2396.3,2396.2,0.54473286]
[1730763123148,0.41754,2396.3,2396.2,1.42181651]
[1730763123545,0.41754,2396.3,2396.2,2.92838056]
[1730763125355,1.92115818,2396.3,2396.2,2.92838056]
[1730763126047,6.09395818,2396.3,2396.2,1.42181651]
[1730763126246,11.47292586,2396.3,2395.8,1.08901405]
[1730763126447,11.47292586,2396.3,2395.9,0.54829069]
[1730763126448,2.77176768,2396.2,2395.9,0.54829069]
[1730763126644,1.63807774,2396.3,2396.2,0.41755]
[1730763126845,2.23867774,2396.5,2396.2,2.51455076]
[1730763127153,0.6006,2396.5,2396.4,1.51102196]
[1730763127449,1.50361818,2396.6,2396.4,2.72057646]
[1730763127651,1.92109818,2396.6,2396.5,1.42553671]
[1730763127851,1.92109818,2396.6,2396.5,2.51876812]
[1730763128044,1.92109818,2396.6,2396.5,2.93626812]
[1730763128247,1.92109818,2396.6,2396.5,2.51876812]
[1730763128448,1.50361818,2396.6,2396.5,2.51876812]
[1730763128648,1.50361818,2396.6,2396.5,2.93626812]
[1730763128849,1.50361818,2396.6,2396.5,1.09339166]
[1730763129056,3.55917592,2396.6,2396.5,0.54816759]
[1730763132554,3.55917592,2396.6,2396.4,4.71870166]
[1730763132744,3.55917592,2396.6,2396.5,0.54828771]
[1730763132949,0.6006,2396.7,2396.5,7.29972805]
[1730763132950,1.63807774,2396.7,2396.5,7.29972805]
[1730763133257,2.05552774,2396.8,2396.6,3.52020805]
[1730763133452,2.05552774,2396.8,2396.7,0.54828771]
[1730763134757,2.05552774,2396.8,2396.7,0.5481562]
[1730763135454,0.41745,2396.8,2396.7,0.5481562]
[1730763135656,2.05514755,2396.8,2396.7,0.5481562]
[1730763136448,0.41747,2396.7,2396.5,1.51088166]
[1730763136654,0.41747,2396.7,2396.6,0.54804297]
[1730763137550,1.63769755,2396.8,2396.6,0.54804297]
[1730763137754,0.61729755,2396.8,2396.7,8.94730297]
[1730763137957,0.41738,2397.2,2397.0,0.4174]
[1730763138358,0.41738,2397.2,2397.1,0.54778121]
[1730763138657,43.32948818,2397.3,2397.1,1.56638121]
[1730763138859,43.32948818,2397.3,2397.2,0.54778121]
[1730763139252,41.82587,2397.3,2397.2,0.54778121]
[1730763139461,41.4085,2397.3,2397.2,0.54778121]
[1730763139657,40.8,2397.3,2397.2,0.9648817]
[1730763139860,4.28888672,2397.5,2397.2,0.96487981]
[1730763140065,4.28888672,2397.5,2397.3,0.41735]
[1730763140360,1.03244,2397.5,2397.3,0.41735]
[1730763140566,40.8,2397.4,2397.3,0.41735]
[1730763140867,40.8,2397.4,2397.3,0.96453827]
[1730763141063,0.6153,2397.6,2397.5,0.41733]
[1730763141256,7.09684672,2397.8,2397.3,1.09292667]
[1730763141455,0.097,2398.0,2397.7,3.2078]
[1730763141456,0.6341,2397.9,2397.7,3.2078]
[1730763141751,1.05136,2397.9,2397.8,0.629]
[1730763141953,1.05136,2397.9,2397.7,3.2078]
[1730763141954,0.41727,2397.8,2397.7,3.2078]
[1730763142260,0.41725,2398.0,2397.7,3.2078]
[1730763142460,0.41723,2398.1,2397.9,0.41725]
[1730763142657,4.4616,2398.2,2397.7,3.8274]
[1730763142658,1.2538,2398.2,2398.1,0.41722]
[1730763142856,0.41719,2398.3,2398.1,0.41722]
[1730763143157,0.41719,2398.3,2398.1,1.05962]
[1730763143564,1.67797,2398.4,2398.2,0.4172]
[1730763143766,0.41719,2398.3,2398.1,1.05961]
[1730763143953,6.96217719,2398.8,2398.1,4.812]
[1730763143954,5.91939719,2398.8,2398.1,4.812]
[1730763144266,40.8,2398.7,2398.3,3.2078]
[1730763144457,0.6341,2398.8,2398.3,3.2078]
[1730763144655,0.097,2399.1,2398.8,0.41709]
[1730763144656,0.51406,2399.1,2398.8,0.41709]
[1730763144861,1.3188,2399.2,2398.7,1.05951]
[1730763145062,0.41709,2398.9,2398.7,1.2726]
[1730763145258,40.8,2399.1,2398.7,1.2726]
[1730763145563,40.8,2399.1,2398.7,1.68971]
[1730763145564,0.41707,2399.0,2398.7,1.68971]
[1730763145764,40.8,2399.1,2398.7,1.2726]
[1730763145962,0.4171,2398.8,2398.7,0.6424]
[1730763146960,0.41712,2398.7,2398.6,3.2078]
[1730763147160,0.41719,2398.3,2398.0,2.5596]
[1730763147470,0.41718,2398.4,2398.2,3.2078]
[1730763147759,0.41719,2398.3,2398.2,3.2078]
[1730763151469,3.25644672,2398.3,2397.9,3.2078]
[1730763151766,0.41724,2398.0,2397.9,3.2078]
[1730763151971,41.21724,2398.0,2397.9,3.2078]
[1730763152366,40.8,2398.0,2397.9,3.2078]
[1730763152569,40.8,2398.0,2397.9,3.62506]
[1730763153575,0.41722,2398.1,2397.9,3.2078]
[1730763154668,40.8,2398.0,2397.9,3.62504]
[1730763154874,0.41723,2398.1,2397.9,3.62504]
[1730763155974,1.08032,2398.2,2398.0,0.41724]
[1730763156162,0.6631,2398.2,2397.9,3.2078]
[1730763156364,41.21718,2398.4,2398.1,0.41721]
[1730763156571,41.21718,2398.4,2397.7,3.25644672]
[1730763156572,41.21718,2398.4,2398.2,3.8326]
[1730763156771,40.8,2398.4,2398.2,3.8326]
[1730763156963,0.6957,2398.5,2398.3,4.58678]
[1730763157165,3.2078,2398.8,2398.3,4.58678]
[1730763157166,0.6571,2398.8,2398.3,0.6819]
[1730763157473,0.41715,2398.6,2398.3,1.09908]
[1730763157775,40.8,2398.7,2398.6,0.41713]
[1730763157971,1.10661,2398.8,2398.6,0.41712]
[1730763157972,0.6895,2398.8,2398.6,0.41712]
[1730763158174,1.2726,2399.1,2398.8,0.4171]
[1730763158471,1.2726,2399.1,2398.8,3.2078]
[1730763158472,0.41707,2399.0,2398.8,3.2078]
[1730763159573,0.41708,2398.9,2398.8,3.2078]
[1730763159779,0.41715,2398.6,2398.4,3.2078]
[1730763160074,0.41715,2398.6,2398.4,3.62496]
[1730763160378,0.41713,2398.7,2398.5,4.58675]
[1730763160576,0.41713,2398.7,2398.5,0.41715]
[1730763160880,3.25644672,2399.0,2398.5,0.41714]
[1730763161079,0.41708,2398.9,2398.5,0.41714]
[1730763161278,3.25644672,2399.0,2398.5,0.41714]
[1730763161279,0.41712,2398.7,2398.5,0.41714]
[1730763161476,3.25644672,2399.0,2398.4,3.62496]
[1730763161677,0.41713,2398.7,2398.4,3.62496]
[1730763161881,3.25644672,2399.0,2398.4,3.62496]
[1730763162074,0.41714,2398.6,2398.4,3.62497]
[1730763162271,0.41715,2398.5,2398.4,3.2078]
[1730763163773,0.41715,2398.6,2398.4,3.2078]
[1730763163969,4.29913672,2399.0,2398.4,3.2078]
[1730763164171,0.41715,2398.6,2398.4,3.2078]
[1730763164376,0.6494,2398.5,2398.4,3.2078]
[1730763164778,1.06655,2398.5,2398.4,3.2078]
[1730763165582,1.06655,2398.5,2398.3,1.09908]
[1730763165780,1.06655,2398.5,2398.4,3.2078]
[1730763166584,5.23615,2398.5,2398.4,3.2078]
[1730763167589,1.06655,2398.5,2398.4,3.2078]
[1730763170076,0.41714,2398.6,2398.4,3.62496]
[1730763170278,0.41714,2398.6,2398.5,0.6328]
[1730763171281,0.6703,2398.9,2398.1,3.2078]
[1730763171583,3.25644672,2398.8,2398.1,3.8406]
[1730763172083,0.41716,2398.5,2398.3,0.41718]
[1730763172484,0.41716,2398.5,2398.4,0.6479]
[1730763173078,0.6703,2398.9,2398.5,0.41715]
[1730763173277,0.6703,2398.9,2398.6,0.6327]
[1730763173278,0.41712,2398.7,2398.6,0.6327]
[1730763174491,0.6703,2398.9,2398.4,3.8557]
[1730763174492,0.41715,2398.5,2398.4,3.8557]
[1730763175183,1.05185,2398.5,2398.4,3.2078]
[1730763175382,1.05185,2398.5,2398.3,3.2078]
[1730763175383,0.41718,2398.4,2398.3,3.2078]